[Event "FIDE World Senior-50 CC 2023"]
[Site "Terrasini"]
[Date "2023.11.01"]
[Round "7.9"]
[White "Matamoros Franco, Carlos S."]
[Black "Stets, Vasyl"]
[Result "1/2-1/2"]
[ECO "A30"]
[WhiteElo "2455"]
[BlackElo "2169"]
[Annotator "ChessBase"]
[PlyCount "83"]
[EventDate "2023.10.22"]
[EventType "swiss"]
[EventCountry "ITA"]
[SourceTitle "playchess.com"]
[Source "ChessBase"]
[SourceQuality "1"]
[TimeControl "40/5400+30:1800+30"]

1. Nf3 {[%emt 0:00:08]} Nf6 {[%emt 0:00:17]} 2. g3 {[%emt 0:00:37]} c5 {[%emt 0:00:34]} 3. c4 {[%emt 0:00:20]} b6 {[%emt 0:03:40]} 4. Bg2 {[%emt 0:00:14]} Bb7 {[%emt 0:00:01]} 5. O-O {[%emt 0:00:44]} g6 {[%emt 0:00:17]} 6. Nc3 {[%emt 0:01:58]} Bg7 {[%emt 0:00:36]} 7. d4 {[%emt 0:00:45]} cxd4 {[%emt 0:03:17]} 8. Qxd4 {[%emt 0:00:08]} O-O {[%emt 0:02:07]} 9. Qh4 {[%emt 0:03:03]} d6 {[%emt 0:08:22]} 10. Bh6 {[%emt 0:04:52]} Nbd7 {[%emt 0:03:45]} 11. b3 {[%emt 0:19:56]} Rb8 {[%emt 0:02:20]} 12. Bxg7 {[%emt 0:23:24]} Kxg7 {[%emt 0:00:23]} 13. Qd4 {[%emt 0:00:03]} Kg8 {[%emt 0:00:37]} 14. Rfd1 {[%emt 0:00:29]} a6 {[%emt 0:00:30]} 15. Nd5 {[%emt 0:01:52]} b5 {[%emt 0:02:22]} 16. Nxf6+ {[%emt 0:00:13]} Nxf6 {[%emt 0:00:16]} 17. c5 {[%emt 0:00:20]} Ne4 {[%emt 0:12:53]} 18. cxd6 {[%emt 0:08:21]} Qxd6 {[%emt 0:07:55]} 19. Qxd6 {[%emt 0:12:49]} Nxd6 {[%emt 0:00:12]} 20. Ne5 {[%emt 0:00:19]} Bxg2 {[%emt 0:11:20]} 21. Kxg2 {[%emt 0:00:03]} Rfc8 {[%emt 0:00:16]} 22. Rac1 {[%emt 0:00:46]} Kg7 {[%emt 0:07:57]} 23. Kf3 {[%emt 0:06:44]} f6 {[%emt 0:06:53]} 24. Nd7 {[%emt 0:02:15]} Ra8 {[%emt 0:04:52]} 25. Nb6 {[%emt 0:00:48]} Rxc1 {[%emt 0:00:03]} 26. Rxc1 {[%emt 0:00:03]} Ra7 {[%emt 0:00:27]} 27. Nd5 {[%emt 0:04:28]} Kf7 {[%emt 0:00:54]} 28. Rc6 {[%emt 0:02:39]} a5 {[%emt 0:02:50]} 29. Nc7 {[%emt 0:02:21]} b4 {[%emt 0:02:06]} 30. e3 {[%emt 0:01:59]} a4 {[%emt 0:08:37]} 31. Nd5 {[%emt 0:00:21]} axb3 {[%emt 0:00:04]} 32. axb3 {[%emt 0:00:03]} Ra3 {[%emt 0:00:27]} 33. Rc7 {[%emt 0:01:36]} Ke6 {[%emt 0:05:39]} 34. Nf4+ {[%emt 0:00:14]} Kf7 {[%emt 0:00:18]} 35. Nd5 {[%emt 0:00:02]} Ke6 {[%emt 0:00:08]} 36. Nxb4 {[%emt 0:02:47]} Rxb3 {[%emt 0:01:24]} 37. Nc6 {[%emt 0:00:19]} Nb5 {[%emt 0:00:43]} 38. Rb7 {[%emt 0:00:54]} Kd6 {[%emt 0:00:25]} 39. Na5 {[%emt 0:00:07]} Rb1 {[%emt 0:02:40]} 40. Kg2 {[%emt 0:00:13]} Nc3 {[%emt 0:00:20]} 41. Nc4+ {[%emt 0:30:53]} Ke6 {[%emt 0:11:25]} 42. Rxb1 {[%emt 0:00:00]} 1/2-1/2

[Event "FIDE World Senior-50 CC 2023"]
[Site "Terrasini"]
[Date "2023.11.01"]
[Round "7.10"]
[White "Maier, Christian"]
[Black "Godena, Michele"]
[Result "0-1"]
[ECO "A20"]
[WhiteElo "2278"]
[BlackElo "2441"]
[Annotator "ChessBase"]
[PlyCount "90"]
[EventDate "2023.10.22"]
[EventType "swiss"]
[EventCountry "ITA"]
[SourceTitle "playchess.com"]
[Source "ChessBase"]
[SourceQuality "1"]
[TimeControl "40/5400+30:1800+30"]

1. c4 {[%emt 0:00:34]} e5 {[%emt 0:00:22]} 2. g3 {[%emt 0:01:59]} c6 {[%emt 0:03:13]} 3. Nf3 {[%emt 0:01:28]} e4 {[%emt 0:01:05]} 4. Nd4 {[%emt 0:00:07]} d5 {[%emt 0:00:21]} 5. cxd5 {[%emt 0:00:05]} Qxd5 {[%emt 0:00:55]} 6. e3 {[%emt 0:03:42]} Bc5 {[%emt 0:05:57]} 7. Nc3 {[%emt 0:00:57]} Qe5 {[%emt 0:00:08]} 8. f4 {[%emt 0:00:19]} exf3 {[%emt 0:25:19]} 9. Nxf3 {[%emt 0:00:21]} Qe7 {[%emt 0:00:05]} 10. d4 {[%emt 0:01:54]} Bb6 {[%emt 0:16:30]} 11. Bd3 {[%emt 0:08:00]} Bg4 {[%emt 0:10:15]} 12. O-O {[%emt 0:01:16]} Nf6 {[%emt 0:00:05]} 13. Qc2 {[%emt 0:02:10]} Nbd7 {[%emt 0:02:03]} 14. Bd2 {[%emt 0:02:40]} O-O {[%emt 0:01:27]} 15. Rae1 {[%emt 0:03:21]} c5 {[%emt 0:03:28]} 16. Na4 {[%emt 0:02:19]} Bxf3 {[%emt 0:10:38]} 17. Rxf3 {[%emt 0:01:02]} cxd4 {[%emt 0:00:39]} 18. Nxb6 {[%emt 0:00:05]} axb6 {[%emt 0:00:22]} 19. exd4 {[%emt 0:00:05]} Qd6 {[%emt 0:00:03]} 20. Bc3 {[%emt 0:04:45]} Rxa2 {[%emt 0:07:31]} 21. Bc4 {[%emt 0:08:48]} Raa8 {[%emt 0:01:53]} 22. Qb3 {[%emt 0:02:52]} b5 {[%emt 0:04:34]} 23. Qxb5 {[%emt 0:02:31]} Nb6 {[%emt 0:00:07]} 24. Bb3 {[%emt 0:02:16]} Nbd5 {[%emt 0:00:41]} 25. Re5 {[%emt 0:02:39]} Rad8 {[%emt 0:01:33]} 26. Rff5 {[%emt 0:06:32]} Ne7 {[%emt 0:00:16]} 27. Rf4 {[%emt 0:06:07]} Ned5 {[%emt 0:00:13]} 28. Rff5 {[%emt 0:02:18]} Nxc3 {[%emt 0:01:23]} 29. bxc3 {[%emt 0:00:05]} Rc8 {[%emt 0:00:13]} 30. Rf3 {[%emt 0:07:31]} Rc7 {[%emt 0:00:10]} 31. Qd3 {[%emt 0:01:49]} Rfc8 {[%emt 0:01:04]} 32. Qd2 {[%emt 0:04:39]} Qa3 {[%emt 0:01:08]} 33. c4 {[%emt 0:00:33]} Rxc4 {[%emt 0:00:51]} 34. d5 {[%emt 0:07:58]} Qa1+ {[%emt 0:02:07]} 35. Re1 {[%emt 0:00:06]} Rc1 {[%emt 0:00:11]} 36. Rff1 {[%emt 0:00:33]} Rxe1 {[%emt 0:00:11]} 37. Rxe1 {[%emt 0:00:03]} Qa3 {[%emt 0:00:13]} 38. Qe3 {[%emt 0:02:23]} h6 {[%emt 0:02:16]} 39. Qb6 {[%emt 0:00:58]} Rc1 {[%emt 0:00:00]} 40. Rxc1 {[%emt 0:00:33]} Qxc1+ {[%emt 0:00:00]} 41. Kg2 {[%emt 0:30:06]} Qd2+ {[%emt 0:17:08]} 42. Kh3 {[%emt 0:00:00]} Ne4 {[%emt 0:02:55]} 43. d6 {[%emt 0:00:00]} Ng5+ {[%emt 0:02:03]} 44. Kg4 {[%emt 0:00:00]} Qe2+ {[%emt 0:00:28]} 45. Kf4 {[%emt 0:00:00]} Qe4# {[%emt 0:00:06]} 0-1

[Event "FIDE World Senior-50 CC 2023"]
[Site "Terrasini"]
[Date "2023.11.01"]
[Round "7.11"]
[White "Boulard, Eric"]
[Black "Paschall, William"]
[Result "1/2-1/2"]
[ECO "A37"]
[WhiteElo "2181"]
[BlackElo "2329"]
[Annotator "ChessBase"]
[PlyCount "106"]
[EventDate "2023.10.22"]
[EventType "swiss"]
[EventCountry "ITA"]
[SourceTitle "playchess.com"]
[Source "ChessBase"]
[SourceQuality "1"]
[TimeControl "40/5400+30:1800+30"]

1. c4 {[%emt 0:00:02]} c5 {[%emt 0:03:29]} 2. Nf3 {[%emt 0:00:41]} g6 {[%emt 0:01:07]} 3. g3 {[%emt 0:00:05]} Bg7 {[%emt 0:01:01]} 4. Bg2 {[%emt 0:00:07]} Nc6 {[%emt 0:00:33]} 5. O-O {[%emt 0:00:37]} d6 {[%emt 0:00:46]} 6. Nc3 {[%emt 0:02:56]} Bf5 {[%emt 0:02:16]} 7. Re1 {[%emt 0:05:18]} Qd7 {[%emt 0:01:30]} 8. d3 {[%emt 0:04:32]} Bh3 {[%emt 0:01:49]} 9. Bh1 {[%emt 0:00:04]} h6 {[%emt 0:00:52]} 10. Rb1 {[%emt 0:12:58]} Bxc3 {[%emt 0:18:30]} 11. bxc3 {[%emt 0:00:59]} Nf6 {[%emt 0:03:04]} 12. e4 {[%emt 0:43:54]} e5 {[%emt 0:11:47]} 13. Nh4 {[%emt 0:06:55]} b6 {[%emt 0:22:05]} 14. Ng2 {[%emt 0:01:00]} Bxg2 {[%emt 0:01:48]} 15. Bxg2 {[%emt 0:00:06]} g5 {[%emt 0:00:24]} 16. f4 {[%emt 0:09:03]} gxf4 {[%emt 0:02:19]} 17. gxf4 {[%emt 0:00:06]} Rg8 {[%emt 0:08:50]} 18. Qf3 {[%emt 0:00:42]} Qg4 {[%emt 0:05:17]} 19. Qxg4 {[%emt 0:03:03]} Rxg4 {[%emt 0:00:38]} 20. Rf1 {[%emt 0:03:16]} Ke7 {[%emt 0:00:59]} 21. Rb2 {[%emt 0:00:21]} Rag8 {[%emt 0:01:02]} 22. f5 {[%emt 0:01:01]} Rh4 {[%emt 0:01:19]} 23. Rf3 {[%emt 0:01:18]} Nh5 {[%emt 0:02:00]} 24. Rbf2 {[%emt 0:00:37]} Kf6 {[%emt 0:02:06]} 25. Bxh6 {[%emt 0:00:52]} Rh8 {[%emt 0:03:06]} 26. Be3 {[%emt 0:00:59]} Nf4 {[%emt 0:00:26]} 27. Rxf4 {[%emt 0:00:36]} exf4 {[%emt 0:00:14]} 28. Bxf4 {[%emt 0:00:04]} Ne5 {[%emt 0:00:37]} 29. Bg3 {[%emt 0:00:13]} Rg4 {[%emt 0:01:31]} 30. Bf1 {[%emt 0:00:16]} Nd7 {[%emt 0:02:04]} 31. Be2 {[%emt 0:00:32]} Rg7 {[%emt 0:00:22]} 32. Kf1 {[%emt 0:00:14]} Ke7 {[%emt 0:00:10]} 33. d4 {[%emt 0:00:20]} f6 {[%emt 0:00:07]} 34. e5 {[%emt 0:01:33]} dxe5 {[%emt 0:00:24]} 35. dxe5 {[%emt 0:00:02]} Rxg3 {[%emt 0:01:16]} 36. exf6+ {[%emt 0:00:15]} Nxf6 {[%emt 0:00:16]} 37. hxg3 {[%emt 0:00:07]} Ne4 {[%emt 0:00:20]} 38. Rf4 {[%emt 0:00:58]} Nxg3+ {[%emt 0:00:23]} 39. Kf2 {[%emt 0:02:12]} Rh2+ {[%emt 0:00:36]} 40. Kxg3 {[%emt 0:00:08]} Rxe2 {[%emt 0:00:04]} 41. Rh4 {[%emt 0:05:16]} Rxa2 {[%emt 0:08:53]} 42. Kf4 {[%emt 0:00:58]} Rf2+ {[%emt 0:00:48]} 43. Ke5 {[%emt 0:00:37]} Re2+ {[%emt 0:00:07]} 44. Kf4 {[%emt 0:00:15]} Kf6 {[%emt 0:05:45]} 45. Rh6+ {[%emt 0:00:54]} Kg7 {[%emt 0:00:09]} 46. Rd6 {[%emt 0:00:10]} Kf7 {[%emt 0:00:48]} 47. Rh6 {[%emt 0:11:17]} Rc2 {[%emt 0:05:08]} 48. Ke5 {[%emt 0:01:25]} Re2+ {[%emt 0:00:58]} 49. Kf4 {[%emt 0:01:07]} Kg7 {[%emt 0:02:07]} 50. Rd6 {[%emt 0:03:41]} Rc2 {[%emt 0:06:25]} 51. Kg5 {[%emt 0:01:52]} Rg2+ {[%emt 0:00:19]} 52. Kf4 {[%emt 0:00:08]} Rc2 {[%emt 0:05:41]} 53. Kg5 {[%emt 0:00:11]} Rg2+ {[%emt 0:02:25]} 1/2-1/2

[Event "FIDE World Senior-50 CC 2023"]
[Site "Terrasini"]
[Date "2023.11.01"]
[Round "7.12"]
[White "Kalisky, Vladimir"]
[Black "Cabe, Arlan"]
[Result "0-1"]
[ECO "B07"]
[WhiteElo "2169"]
[BlackElo "2303"]
[Annotator "ChessBase"]
[PlyCount "112"]
[EventDate "2023.10.22"]
[EventType "swiss"]
[EventCountry "ITA"]
[SourceTitle "playchess.com"]
[Source "ChessBase"]
[SourceQuality "1"]
[TimeControl "40/5400+30:1800+30"]

1. e4 {[%emt 0:00:04]} g6 {[%emt 0:01:51]} 2. d4 {[%emt 0:00:19]} Bg7 {[%emt 0:00:09]} 3. Nf3 {[%emt 0:00:19]} d6 {[%emt 0:01:12]} 4. Bd3 {[%emt 0:03:54]} c5 {[%emt 0:05:02]} 5. c3 {[%emt 0:02:16]} Nf6 {[%emt 0:03:44]} 6. O-O {[%emt 0:00:28]} O-O {[%emt 0:00:21]} 7. Re1 {[%emt 0:02:10]} cxd4 {[%emt 0:01:10]} 8. cxd4 {[%emt 0:00:11]} Nc6 {[%emt 0:00:32]} 9. Nc3 {[%emt 0:01:06]} Bg4 {[%emt 0:00:35]} 10. Be3 {[%emt 0:04:29]} Nd7 {[%emt 0:01:35]} 11. Be2 {[%emt 0:01:52]} Nb6 {[%emt 0:07:31]} 12. b3 {[%emt 0:09:44]} e5 {[%emt 0:15:12]} 13. dxe5 {[%emt 0:22:15]} dxe5 {[%emt 0:05:32]} 14. Bc5 {[%emt 0:16:35]} Re8 {[%emt 0:02:43]} 15. Nb5 {[%emt 0:05:00]} Bxf3 {[%emt 0:08:55]} 16. Bxf3 {[%emt 0:01:09]} Nd4 {[%emt 0:01:34]} 17. Be2 {[%emt 0:10:42]} Re6 {[%emt 0:23:48]} 18. a4 {[%emt 0:03:13]} a6 {[%emt 0:08:36]} 19. Nc3 {[%emt 0:04:54]} Rc8 {[%emt 0:03:11]} 20. Bxb6 {[%emt 0:03:51]} Rxb6 {[%emt 0:02:20]} 21. Bc4 {[%emt 0:00:17]} Rbc6 {[%emt 0:00:51]} 22. Qg4 {[%emt 0:01:14]} Kh8 {[%emt 0:00:38]} 23. Red1 {[%emt 0:01:00]} Qf8 {[%emt 0:00:48]} 24. Nd5 {[%emt 0:00:58]} f5 {[%emt 0:00:55]} 25. Qh4 {[%emt 0:00:09]} Rd6 {[%emt 0:01:35]} 26. a5 {[%emt 0:01:17]} fxe4 {[%emt 0:00:40]} 27. Qxe4 {[%emt 0:00:06]} Rcd8 {[%emt 0:00:51]} 28. Rd3 {[%emt 0:00:45]} Qf5 {[%emt 0:00:37]} 29. f3 {[%emt 0:00:22]} Qd7 {[%emt 0:00:45]} 30. Nb6 {[%emt 0:00:38]} Qc7 {[%emt 0:00:15]} 31. Rad1 {[%emt 0:00:16]} Qc5 {[%emt 0:00:16]} 32. Kf1 {[%emt 0:01:07]} Qxa5 {[%emt 0:00:17]} 33. Na4 {[%emt 0:00:54]} b5 {[%emt 0:00:24]} 34. Nc5 {[%emt 0:00:05]} bxc4 {[%emt 0:00:34]} 35. Nb7 {[%emt 0:00:01]} Qc7 {[%emt 0:02:05]} 36. bxc4 {[%emt 0:00:06]} Qxc4 {[%emt 0:00:17]} 37. Nxd6 {[%emt 0:00:17]} Rxd6 {[%emt 0:00:05]} 38. Qa8+ {[%emt 0:00:17]} Qg8 {[%emt 0:00:02]} 39. Qb7 {[%emt 0:00:35]} h5 {[%emt 0:00:30]} 40. Rc1 {[%emt 0:00:34]} Qa2 {[%emt 0:00:36]} 41. Qe4 {[%emt 0:30:46]} Qf7 {[%emt 0:31:38]} 42. h3 {[%emt 0:02:51]} Kh7 {[%emt 0:00:25]} 43. Rc5 {[%emt 0:01:34]} Nf5 {[%emt 0:00:47]} 44. Kg1 {[%emt 0:00:00]} Qa7 {[%emt 0:00:00]} 45. Rdc3 {[%emt 0:00:00]} Rd1+ {[%emt 0:00:00]} 46. Kh2 {[%emt 0:00:00]} Rh1+ {[%emt 0:00:00]} 47. Kxh1 {[%emt 0:00:00]} Ng3+ {[%emt 0:00:00]} 48. Kh2 {[%emt 0:00:00]} Nxe4 {[%emt 0:00:00]} 49. fxe4 {[%emt 0:00:00]} h4 {[%emt 0:00:00]} 50. g3 {[%emt 0:00:00]} Kh6 {[%emt 0:00:00]} 51. gxh4 {[%emt 0:00:00]} Bf8 {[%emt 0:00:00]} 52. Rc8 {[%emt 0:00:00]} Qf2+ {[%emt 0:00:00]} 53. Kh1 {[%emt 0:00:00]} a5 {[%emt 0:00:00]} 54. R3c4 {[%emt 0:00:00]} Kh5 {[%emt 0:00:00]} 55. R4c7 {[%emt 0:00:00]} Qf1+ {[%emt 0:00:00]} 56. Kh2 {[%emt 0:00:00]} Qf4+ {[%emt 0:00:00]} 0-1

[Event "FIDE World Senior-50 CC 2023"]
[Site "Terrasini"]
[Date "2023.11.01"]
[Round "7.13"]
[White "Vlassov, Nikolai"]
[Black "Mussanti, Diego"]
[Result "1-0"]
[ECO "B43"]
[WhiteElo "2283"]
[BlackElo "2183"]
[Annotator "ChessBase"]
[PlyCount "145"]
[EventDate "2023.10.22"]
[EventType "swiss"]
[EventCountry "ITA"]
[SourceTitle "playchess.com"]
[Source "ChessBase"]
[SourceQuality "1"]
[TimeControl "40/5400+30:1800+30"]

1. e4 {[%emt 0:00:30]} c5 {[%emt 0:00:05]} 2. Nf3 {[%emt 0:00:00]} e6 {[%emt 0:00:12]} 3. d4 {[%emt 0:00:00]} cxd4 {[%emt 0:00:28]} 4. Nxd4 {[%emt 0:00:00]} a6 {[%emt 0:03:21]} 5. Nc3 {[%emt 0:00:35]} b5 {[%emt 0:00:51]} 6. Be3 {[%emt 0:04:57]} Bb7 {[%emt 0:02:50]} 7. f3 {[%emt 0:06:20]} Nc6 {[%emt 0:09:23]} 8. Nb3 {[%emt 0:09:15]} d6 {[%emt 0:04:59]} 9. Qe2 {[%emt 0:04:23]} Nf6 {[%emt 0:02:42]} 10. g4 {[%emt 0:05:42]} Be7 {[%emt 0:05:12]} 11. g5 {[%emt 0:01:52]} Nd7 {[%emt 0:00:26]} 12. h4 {[%emt 0:00:30]} Na5 {[%emt 0:04:27]} 13. O-O-O {[%emt 0:03:00]} Nc4 {[%emt 0:04:32]} 14. Bd4 {[%emt 0:03:01]} O-O {[%emt 0:01:40]} 15. Bh3 {[%emt 0:03:07]} e5 {[%emt 0:18:03]} 16. Bf2 {[%emt 0:01:01]} Ndb6 {[%emt 0:01:43]} 17. Nc5 {[%emt 0:12:51]} Bc8 {[%emt 0:02:48]} 18. Nd3 {[%emt 0:01:09]} Bxh3 {[%emt 0:06:33]} 19. Rxh3 {[%emt 0:00:05]} a5 {[%emt 0:02:23]} 20. b3 {[%emt 0:03:12]} b4 {[%emt 0:09:49]} 21. Nb1 {[%emt 0:00:43]} Na3 {[%emt 0:00:29]} 22. Nxe5 {[%emt 0:03:48]} Qc8 {[%emt 0:03:16]} 23. Ng4 {[%emt 0:00:30]} a4 {[%emt 0:02:19]} 24. Nxa3 {[%emt 0:09:44]} axb3 {[%emt 0:01:01]} 25. axb3 {[%emt 0:00:11]} Rxa3 {[%emt 0:02:04]} 26. Rd3 {[%emt 0:02:08]} Nd7 {[%emt 0:02:05]} 27. f4 {[%emt 0:03:24]} Ra1+ {[%emt 0:01:37]} 28. Kd2 {[%emt 0:00:11]} Ra2 {[%emt 0:00:08]} 29. Qd1 {[%emt 0:01:41]} Qa8 {[%emt 0:00:24]} 30. Rd5 {[%emt 0:03:28]} Rc8 {[%emt 0:00:30]} 31. Bd4 {[%emt 0:01:29]} Qc6 {[%emt 0:05:08]} 32. Ne3 {[%emt 0:00:24]} Nb6 {[%emt 0:00:14]} 33. Bxb6 {[%emt 0:02:09]} Qxb6 {[%emt 0:00:05]} 34. Rf3 {[%emt 0:00:58]} Qa7 {[%emt 0:01:57]} 35. Qe2 {[%emt 0:01:29]} Ra1 {[%emt 0:01:04]} 36. Rf1 {[%emt 0:00:41]} g6 {[%emt 0:01:01]} 37. f5 {[%emt 0:01:50]} Qa2 {[%emt 0:01:23]} 38. Rxa1 {[%emt 0:01:19]} Qxa1 {[%emt 0:00:04]} 39. Qd1 {[%emt 0:01:01]} Qc3+ {[%emt 0:00:21]} 40. Ke2 {[%emt 0:00:02]} Bf8 {[%emt 0:00:42]} 41. Qd4 {[%emt 0:30:43]} Qc6 {[%emt 0:30:52]} 42. Qxb4 {[%emt 0:00:16]} Qa6+ {[%emt 0:00:22]} 43. Kf3 {[%emt 0:00:46]} Qa1 {[%emt 0:00:23]} 44. Kg2 {[%emt 0:01:57]} Rc3 {[%emt 0:01:41]} 45. Rd1 {[%emt 0:06:39]} Rxc2+ {[%emt 0:00:00]} 46. Kf3 {[%emt 0:00:00]} Rc1 {[%emt 0:00:00]} 47. Qd2 {[%emt 0:00:00]} Rxd1 {[%emt 0:00:00]} 48. Qxd1 {[%emt 0:00:00]} Qc3 {[%emt 0:00:00]} 49. Ke2 {[%emt 0:00:00]} Qe5 {[%emt 0:00:00]} 50. Kd3 {[%emt 0:00:00]} Qg3 {[%emt 0:00:00]} 51. f6 {[%emt 0:00:00]} Qxh4 {[%emt 0:00:00]} 52. Qg1 {[%emt 0:00:00]} h6 {[%emt 0:00:00]} 53. b4 {[%emt 0:00:00]} hxg5 {[%emt 0:00:00]} 54. b5 {[%emt 0:00:00]} Qh3 {[%emt 0:00:00]} 55. Qg4 {[%emt 0:00:00]} Qh1 {[%emt 0:00:00]} 56. Qd1 {[%emt 0:00:00]} Qh3 {[%emt 0:00:00]} 57. Qb3 {[%emt 0:00:00]} g4 {[%emt 0:00:00]} 58. b6 {[%emt 0:00:00]} Bh6 {[%emt 0:00:00]} 59. Kd4 {[%emt 0:00:00]} Bxe3+ {[%emt 0:00:00]} 60. Qxe3 {[%emt 0:00:00]} Qf1 {[%emt 0:00:00]} 61. Kd5 {[%emt 0:03:37]} Qxf6 {[%emt 0:00:22]} 62. b7 {[%emt 0:02:29]} Qe6+ {[%emt 0:02:09]} 63. Kc6 {[%emt 0:00:02]} d5+ {[%emt 0:00:37]} 64. Kb5 {[%emt 0:01:35]} Qe8+ {[%emt 0:01:42]} 65. Kb6 {[%emt 0:00:46]} Qd8+ {[%emt 0:02:07]} 66. Ka6 {[%emt 0:00:09]} Qf6+ {[%emt 0:01:07]} 67. Qb6 {[%emt 0:00:36]} Qa1+ {[%emt 0:01:13]} 68. Qa5 {[%emt 0:00:23]} Qf6+ {[%emt 0:01:38]} 69. Ka7 {[%emt 0:00:14]} Qe7 {[%emt 0:00:35]} 70. Ka8 {[%emt 0:00:16]} Qxe4 {[%emt 0:00:59]} 71. b8=Q+ {[%emt 0:00:09]} Kg7 {[%emt 0:00:06]} 72. Qbd8 {[%emt 0:01:47]} g3 {[%emt 0:01:41]} 73. Qaxd5 {[%emt 0:00:19]} 1-0

[Event "FIDE World Senior-50 CC 2023"]
[Site "Terrasini"]
[Date "2023.11.01"]
[Round "7.14"]
[White "Melikhov, Evgeny V."]
[Black "Mrva, Martin"]
[Result "0-1"]
[ECO "E81"]
[WhiteElo "2189"]
[BlackElo "2366"]
[Annotator "ChessBase"]
[PlyCount "52"]
[EventDate "2023.10.22"]
[EventType "swiss"]
[EventCountry "ITA"]
[SourceTitle "playchess.com"]
[Source "ChessBase"]
[SourceQuality "1"]
[TimeControl "40/5400+30:1800+30"]

1. d4 {[%emt 0:00:08]} Nf6 {[%emt 0:00:09]} 2. c4 {[%emt 0:00:43]} g6 {[%emt 0:00:06]} 3. Nc3 {[%emt 0:00:41]} Bg7 {[%emt 0:00:07]} 4. e4 {[%emt 0:00:49]} d6 {[%emt 0:00:08]} 5. f3 {[%emt 0:00:34]} O-O {[%emt 0:00:13]} 6. Be3 {[%emt 0:01:01]} c5 {[%emt 0:00:39]} 7. Nge2 {[%emt 0:01:09]} Qa5 {[%emt 0:00:39]} 8. d5 {[%emt 0:11:25]} b5 {[%emt 0:01:34]} 9. cxb5 {[%emt 0:04:46]} a6 {[%emt 0:00:08]} 10. Ng3 {[%emt 0:07:25]} h5 {[%emt 0:17:57]} 11. Qa4 {[%emt 0:19:55]} Qxa4 {[%emt 0:07:08]} 12. Nxa4 {[%emt 0:00:07]} h4 {[%emt 0:00:47]} 13. Nb6 {[%emt 0:02:17]} Ra7 {[%emt 0:00:15]} 14. Ne2 {[%emt 0:05:30]} axb5 {[%emt 0:01:08]} 15. a4 {[%emt 0:04:40]} Nfd7 {[%emt 0:07:09]} 16. Nxc8 {[%emt 0:05:49]} Rxc8 {[%emt 0:00:05]} 17. a5 {[%emt 0:00:29]} Bxb2 {[%emt 0:09:51]} 18. Rb1 {[%emt 0:01:25]} Ne5 {[%emt 0:00:32]} 19. Kd1 {[%emt 0:06:32]} Nc4 {[%emt 0:01:48]} 20. Bf2 {[%emt 0:00:26]} Nd7 {[%emt 0:03:44]} 21. Nf4 {[%emt 0:05:55]} Rxa5 {[%emt 0:04:06]} 22. Bxh4 {[%emt 0:03:23]} Ne3+ {[%emt 0:04:44]} 23. Kd2 {[%emt 0:01:49]} Bd4 {[%emt 0:00:15]} 24. Ne2 {[%emt 0:03:28]} Ra2+ {[%emt 0:00:56]} 25. Ke1 {[%emt 0:00:18]} Ne5 {[%emt 0:01:09]} 26. Nxd4 {[%emt 0:00:53]} cxd4 {[%emt 0:00:15]} 0-1

[Event "FIDE World Senior-50 CC 2023"]
[Site "Terrasini"]
[Date "2023.11.01"]
[Round "7.15"]
[White "Cummings, David H."]
[Black "Luciani, Valerio"]
[Result "1-0"]
[ECO "A21"]
[WhiteElo "2325"]
[BlackElo "2090"]
[Annotator "ChessBase"]
[PlyCount "119"]
[EventDate "2023.10.22"]
[EventType "swiss"]
[EventCountry "ITA"]
[SourceTitle "playchess.com"]
[Source "ChessBase"]
[SourceQuality "1"]
[TimeControl "40/5400+30:1800+30"]

1. c4 {[%emt 0:00:07]} e5 {[%emt 0:00:13]} 2. Nc3 {[%emt 0:00:08]} Bb4 {[%emt 0:00:50]} 3. Nd5 {[%emt 0:00:23]} Na6 {[%emt 0:00:47]} 4. a3 {[%emt 0:00:40]} Be7 {[%emt 0:04:02]} 5. b4 {[%emt 0:02:28]} c6 {[%emt 0:02:42]} 6. Nxe7 {[%emt 0:00:37]} Qxe7 {[%emt 0:00:17]} 7. Bb2 {[%emt 0:00:36]} d6 {[%emt 0:07:20]} 8. Nf3 {[%emt 0:04:10]} Nc7 {[%emt 0:03:39]} 9. g3 {[%emt 0:02:13]} f6 {[%emt 0:02:55]} 10. Bg2 {[%emt 0:06:32]} Be6 {[%emt 0:04:44]} 11. Qc2 {[%emt 0:02:56]} Nh6 {[%emt 0:16:51]} 12. d4 {[%emt 0:06:50]} O-O {[%emt 0:10:02]} 13. e4 {[%emt 0:06:26]} exd4 {[%emt 0:13:39]} 14. Nxd4 {[%emt 0:01:24]} Bf7 {[%emt 0:03:14]} 15. O-O {[%emt 0:01:35]} Bg6 {[%emt 0:05:34]} 16. Rfe1 {[%emt 0:10:27]} Qd7 {[%emt 0:03:00]} 17. Rad1 {[%emt 0:04:44]} Ne6 {[%emt 0:06:10]} 18. f4 {[%emt 0:09:56]} Nxd4 {[%emt 0:03:26]} 19. Rxd4 {[%emt 0:00:32]} Qe7 {[%emt 0:01:52]} 20. Red1 {[%emt 0:04:56]} Rad8 {[%emt 0:04:46]} 21. h3 {[%emt 0:08:52]} f5 {[%emt 0:00:49]} 22. e5 {[%emt 0:03:27]} dxe5 {[%emt 0:00:13]} 23. Rxd8 {[%emt 0:00:34]} Rxd8 {[%emt 0:00:02]} 24. Rxd8+ {[%emt 0:01:05]} Qxd8 {[%emt 0:00:01]} 25. Bxe5 {[%emt 0:00:09]} Nf7 {[%emt 0:02:12]} 26. Bb2 {[%emt 0:00:21]} Nd6 {[%emt 0:00:58]} 27. Qd3 {[%emt 0:02:38]} Qe7 {[%emt 0:00:41]} 28. Qd4 {[%emt 0:01:50]} a6 {[%emt 0:00:06]} 29. c5 {[%emt 0:06:12]} Ne8 {[%emt 0:00:30]} 30. Qe5 {[%emt 0:00:54]} Qxe5 {[%emt 0:00:21]} 31. Bxe5 {[%emt 0:00:13]} Bf7 {[%emt 0:00:42]} 32. Kf2 {[%emt 0:00:31]} Bb3 {[%emt 0:00:35]} 33. g4 {[%emt 0:00:44]} Kf7 {[%emt 0:01:38]} 34. g5 {[%emt 0:01:36]} g6 {[%emt 0:01:11]} 35. Ke3 {[%emt 0:00:07]} Ng7 {[%emt 0:00:50]} 36. Bxg7 {[%emt 0:01:27]} Kxg7 {[%emt 0:00:02]} 37. Kd4 {[%emt 0:00:39]} Kf7 {[%emt 0:00:04]} 38. Ke5 {[%emt 0:08:13]} Ke7 {[%emt 0:00:01]} 39. Bf1 {[%emt 0:00:09]} Ba2 {[%emt 0:00:40]} 40. Bd3 {[%emt 0:01:19]} Bb3 {[%emt 0:01:31]} 41. Kd4 {[%emt 0:08:05]} Bd1 {[%emt 0:00:39]} 42. Bc4 {[%emt 0:00:29]} Bf3 {[%emt 0:02:29]} 43. Ke5 {[%emt 0:00:25]} Bg2 {[%emt 0:01:09]} 44. h4 {[%emt 0:00:17]} Bf3 {[%emt 0:00:08]} 45. Be6 {[%emt 0:04:43]} Be2 {[%emt 0:01:51]} 46. a4 {[%emt 0:02:49]} Bd1 {[%emt 0:01:33]} 47. Bc8 {[%emt 0:00:56]} Bxa4 {[%emt 0:00:10]} 48. Bxb7 {[%emt 0:01:04]} Bb5 {[%emt 0:00:05]} 49. Bc8 {[%emt 0:00:19]} Be2 {[%emt 0:00:54]} 50. Be6 {[%emt 0:00:17]} Bd3 {[%emt 0:02:52]} 51. Bb3 {[%emt 0:00:54]} Be2 {[%emt 0:02:21]} 52. Bc2 {[%emt 0:01:08]} Bc4 {[%emt 0:01:26]} 53. Bd1 {[%emt 0:00:30]} Bf1 {[%emt 0:01:57]} 54. Bf3 {[%emt 0:00:42]} Bb5 {[%emt 0:00:11]} 55. h5 {[%emt 0:00:53]} Ba4 {[%emt 0:02:13]} 56. Be2 {[%emt 0:00:56]} Bb5 {[%emt 0:00:06]} 57. Bxb5 {[%emt 0:00:33]} axb5 {[%emt 0:00:02]} 58. h6 {[%emt 0:00:35]} Kd7 {[%emt 0:00:04]} 59. Kf6 {[%emt 0:00:07]} Kd8 {[%emt 0:00:34]} 60. Ke6 {[%emt 0:00:23]} 1-0